bitfinex/quotes_SOLUSD_20251126
["timestamp","ask_amount","ask_price","bid_price","bid_amount"]
[1764164761367,4.92562647,136.81,136.79,0.29]
[1764164761568,14.94988825,136.86,136.8,2.8777013]
[1764164761743,4.92530499,136.85,136.81,2.8777013]
[1764164761943,4.92530499,136.84,136.82,7.30887297]
[1764164762243,4.92530499,136.83,136.82,7.30887297]
[1764164763446,5.59530499,136.83,136.79,18.56537068]
[1764164763654,16.978864,136.85,136.8,10.18738612]
[1764164763876,5.59473731,136.84,136.8,10.18738612]
[1764164764057,4.92473731,136.83,136.8,10.47738612]
[1764164764264,0.67,136.84,136.8,28.75223992]
[1764164764474,4.92447389,136.83,136.8,28.75223992]
[1764164764777,0.67,136.84,136.8,28.75223992]
[1764164764996,4.92447402,136.83,136.8,28.75223992]
[1764164765146,0.67,136.84,136.8,28.75223992]
[1764164765469,4.92422376,136.83,136.8,28.75223992]
[1764164765654,0.67,136.84,136.8,28.75223992]
[1764164765848,4.92422376,136.83,136.8,28.75223992]
[1764164766062,0.67,136.84,136.8,28.75223992]
[1764164766265,4.92422417,136.83,136.8,28.75223992]
[1764164766442,0.67,136.84,136.8,28.75223992]
[1764164766642,4.92402336,136.83,136.8,28.75223992]
[1764164766963,0.67,136.84,136.8,28.75223992]
[1764164767290,4.92402336,136.83,136.8,28.75223992]
[1764164767470,0.67,136.84,136.8,28.75223992]
[1764164767666,4.92383043,136.83,136.81,2.8777013]
[1764164767973,0.67,136.84,136.8,28.75223992]
[1764164768268,4.92383003,136.83,136.81,2.8777013]
[1764164768470,0.67,136.84,136.81,3.1677013]
[1764164768644,4.92370018,136.83,136.81,3.1677013]
[1764164768848,0.67,136.84,136.81,3.1677013]
[1764164769042,4.92370018,136.83,136.81,3.1677013]
[1764164769262,0.67,136.84,136.81,3.1677013]
[1764164769546,4.92348139,136.83,136.81,3.1677013]
[1764164769770,0.67,136.84,136.81,3.1677013]
[1764164769972,4.92324517,136.83,136.81,3.1677013]
[1764164770159,0.67,136.84,136.82,7.30887297]
[1764164770364,4.92292925,136.83,136.82,7.30887297]
[1764164772378,4.92292925,136.83,136.82,10.47657427]
[1764164772674,0.65,136.86,136.82,28.74875669]
[1764164772872,4.92226993,136.85,136.84,2.8777013]
[1764164773647,4.92226993,136.85,136.84,3.1677013]
[1764164773852,4.92226993,136.85,136.84,2.8777013]
[1764164774472,6.13994333,136.9,136.84,31.62271916]
[1764164774681,4.91978372,136.89,136.85,3.1677013]
[1764164774977,4.91954448,136.88,136.84,87.47731656]
[1764164775155,9.52994492,136.9,136.84,87.47731656]
[1764164775356,4.91725468,136.89,136.84,87.47731656]
[1764164775579,4.91725468,136.88,136.84,87.47731656]
[1764164775751,4.91725468,136.88,136.84,7.30780473]
[1764164775752,4.91725468,136.87,136.84,7.30780473]
[1764164775960,4.91725468,136.87,136.79,61.9]
[1764164775961,7.79495598,136.86,136.78,61.9]
[1764164776159,4.91725468,136.85,136.8,2.8777013]
[1764164776353,4.91725468,136.84,136.8,28.46177046]
[1764164776551,4.91725468,136.83,136.8,28.46177046]
[1764164776750,0.72,136.83,136.8,28.46177046]
[1764164776947,2.8777013,136.86,136.8,25.58406916]
[1764164776948,0.72,136.82,136.8,25.58406916]
[1764164777177,2.8777013,136.86,136.8,28.46177046]
[1764164777478,0.72,136.84,136.8,28.46177046]
[1764164777675,4.91883574,136.83,136.8,28.46177046]
[1764164777877,0.72,136.84,136.8,28.46177046]
[1764164778062,5.63883656,136.83,136.8,18.27412764]
[1764164778263,0.72,136.83,136.8,21.15182894]
[1764164778458,0.72,136.85,136.81,2.8777013]
[1764164778666,4.91865898,136.84,136.81,2.8777013]
[1764164778872,0.72,136.85,136.81,2.8777013]
[1764164779073,6.13994333,136.89,136.84,2.8777013]
[1764164779249,4.91596303,136.9,136.88,2.8777013]
[1764164779447,0.72,136.92,136.88,2.8777013]
[1764164779448,0.72,136.92,136.88,0.29]
[1764164779750,0.72,136.94,136.91,2.8777013]
[1764164779950,0.72,136.94,136.92,7.30353491]
[1764164780146,0.72,136.96,136.92,10.18123621]
[1764164780346,0.72,136.96,136.93,2.8777013]
[1764164780550,0.72,136.96,136.92,25.56237218]
[1764164780782,0.72,136.96,136.92,32.39830036]
[1764164781388,0.72,136.96,136.92,7.30353491]
[1764164783052,8.80994492,136.95,136.91,7.30388522]
[1764164783258,15.6458731,136.95,136.91,7.30388522]
[1764164783478,0.72,136.94,136.91,7.30388522]
[1764164784792,7.55592818,136.94,136.89,7.30513551]
[1764164784979,0.72,136.94,136.89,6.83592818]
[1764164785161,0.72,136.93,136.89,6.83592818]
[1764164786384,0.72,136.93,136.87,42.16874823]
[1764164786567,0.72,136.93,136.89,7.30513551]
[1764164787568,0.72,136.93,136.89,32.40390246]
[1764164788287,0.72,136.93,136.89,25.56797428]
[1764164789310,0.72,136.93,136.89,32.40390246]
[1764164790806,0.72,136.93,136.89,7.30513551]
[1764164794079,0.72,136.93,136.89,25.56797428]
[1764164796594,0.72,136.93,136.89,87.46797428]
[1764164796794,7.55592818,136.93,136.89,69.20513551]
[1764164797182,0.72,136.92,136.89,69.20513551]
[1764164797573,6.83592818,136.91,136.89,61.9]
[1764164798083,0.72,136.9,136.89,61.9]
[1764164798282,0.72,136.9,136.88,69.20545789]
[1764164798688,0.72,136.92,136.88,87.46963088]
[1764164798993,16.308864,136.94,136.89,6.83592818]
[1764164799178,0.72,136.93,136.89,68.73592818]
[1764164799382,16.308864,136.92,136.89,68.73592818]
[1764164799812,17.028864,136.92,136.89,68.73592818]
[1764164800782,16.99257427,136.92,136.9,7.30460189]
[1764164801473,16.99257427,136.92,136.89,69.20496547]
[1764164801680,16.308864,136.92,136.89,69.20496547]
[1764164802188,23.14479218,136.92,136.89,61.9]
[1764164802388,23.14479218,136.92,136.89,69.20495027]
[1764164802587,23.14479218,136.92,136.87,80.16479689]
[1764164802588,19.18294715,136.92,136.87,80.16479689]
[1764164802792,0.72,136.91,136.87,80.16479689]
[1764164803403,0.72,136.91,136.88,7.30538586]
[1764164805009,16.978864,136.92,136.88,28.773642]
[1764164805305,0.67,136.94,136.9,2.87408315]
[1764164805495,16.978864,136.94,136.9,2.87408315]
[1764164805701,0.67,136.94,136.9,2.87408315]
[1764164806004,0.67,136.93,136.9,2.87408315]
[1764164806589,0.67,136.93,136.91,7.30406836]
[1764164808787,3.54408315,136.93,136.89,25.5675347]
[1764164809198,0.67,136.92,136.89,25.5675347]
[1764164809485,0.67,136.92,136.89,7.30513551]
[1764164810207,8.44353436,136.92,136.88,7.30546075]
[1764164810496,7.77353436,136.91,136.88,7.30546075]
[1764164810701,8.44353436,136.91,136.88,61.9]
[1764164810908,16.978864,136.9,136.88,61.9]
[1764164811292,0.67,136.89,136.88,61.9]
[1764164812091,3.54408315,136.89,136.85,69.20705202]
[1764164812291,2.87408315,136.88,136.85,69.20705202]
[1764164812508,19.85294715,136.88,136.84,7.30758782]
[1764164812701,2.87408315,136.86,136.83,7.30811505]
[1764164813103,0.67,136.85,136.83,7.30811505]
[1764164814598,0.67,136.85,136.81,18.2726397]
[1764164814599,0.67,136.85,136.82,7.30863025]
[1764164814918,0.67,136.85,136.81,25.5820469]
[1764164815513,0.67,136.85,136.81,25.9120469]
[1764164815819,0.67,136.85,136.81,32.76053862]
[1764164816519,0.67,136.85,136.81,25.9120469]
[1764164816717,5.57528012,136.85,136.81,7.3094072]
[1764164817221,0.67,136.84,136.81,7.3094072]
[1764164817597,12.59369682,136.86,136.81,19.23310402]
[1764164817796,0.67,136.85,136.81,19.56310402]
[1764164818018,0.67,136.85,136.81,37.83662203]
[1764164818417,4.90492519,136.86,136.81,37.50662203]
[1764164818713,5.57492519,136.86,136.81,37.83662203]
[1764164818902,5.57492519,136.86,136.82,0.33]
[1764164819307,0.67,136.86,136.82,0.33]
[1764164819703,28.23256082,136.88,136.82,12.25369682]
[1764164819908,4.90376828,136.87,136.83,11.92369682]
[1764164820309,0.67,136.86,136.83,11.92369682]
[1764164820912,8.80994492,136.9,136.85,11.92369682]
[1764164820913,0.67,136.9,136.85,11.92369682]
[1764164821114,0.67,136.9,136.86,12.25369682]
[1764164821317,5.57258906,136.91,136.87,11.92369682]
[1764164821814,4.90258906,136.91,136.87,11.92369682]
[1764164822020,0.67,136.9,136.87,11.92369682]
[1764164822203,5.57258906,136.9,136.87,11.92369682]
[1764164822403,0.67,136.9,136.87,11.92369682]
[1764164822922,0.67,136.9,136.86,7.30644088]
[1764164823103,5.57258906,136.9,136.86,7.30644088]
[1764164823523,0.67,136.89,136.86,7.30644088]
[1764164824914,0.67,136.89,136.86,37.49697972]
[1764164825222,4.90715334,136.91,136.86,37.82697972]
[1764164825523,5.59743792,136.91,136.87,11.92369682]
[1764164825716,0.69,136.91,136.87,11.92369682]
[1764164825901,0.69,136.9,136.87,11.92369682]
[1764164826104,11.92369682,136.89,136.84,25.57695801]
[1764164826306,21.42364174,136.9,136.84,99.40065483]
[1764164826503,5.59870228,136.89,136.84,99.40065483]
[1764164826896,0.69,136.88,136.84,61.9]
[1764164827121,5.59870228,136.88,136.84,74.15369682]
[1764164827294,0.69,136.88,136.84,74.15369682]
[1764164827506,0.69,136.88,136.85,11.92369682]
[1764164827705,4.90946471,136.89,136.85,11.92369682]
[1764164827911,0.69,136.89,136.85,11.92369682]
[1764164828108,6.12913309,136.92,136.86,11.92369682]
[1764164828320,5.60017986,136.91,136.88,11.92369682]
[1764164828629,4.91017986,136.9,136.88,11.92369682]
[1764164829129,5.60017986,136.9,136.88,11.92369682]
[1764164829310,0.69,136.9,136.86,25.90357883]
[1764164829515,0.69,136.9,136.87,11.92369682]
[1764164829843,5.60017986,136.9,136.87,11.92369682]
[1764164830125,0.69,136.9,136.87,11.92369682]
[1764164830430,0.69,136.9,136.88,7.30566919]
[1764164830604,5.60017986,136.9,136.88,7.30566919]
[1764164830801,0.69,136.9,136.86,11.92369682]
[1764164831109,5.60070461,136.89,136.86,37.49727565]
[1764164831426,0.69,136.89,136.86,37.49727565]
[1764164831623,4.91070461,136.9,136.87,11.92369682]
[1764164831799,4.91070461,136.89,136.87,11.92369682]
[1764164832005,0.69,136.9,136.87,11.92369682]
[1764164832206,0.69,136.9,136.88,7.30566919]
[1764164833112,4.91152075,136.91,136.89,11.92369682]
[1764164833414,0.69,136.93,136.9,11.92369682]
[1764164833597,16.998864,136.93,136.9,11.92369682]
[1764164833799,26.86277483,136.96,136.9,11.92369682]
[1764164833800,14.93907801,136.96,136.9,11.92369682]
[1764164834024,5.6008048,136.95,136.91,11.92369682]
[1764164834230,13.72074972,136.94,136.9,7.30460189]
[1764164834431,4.9108048,136.93,136.9,7.30460189]
[1764164834634,0.68,136.93,136.89,7.30505889]
[1764164834934,5.59088264,136.92,136.89,7.30505889]
[1764164835140,0.68,136.92,136.89,19.22875571]
[1764164835435,4.91119304,136.93,136.9,11.92369682]
[1764164835626,0.68,136.93,136.9,11.92369682]
[1764164835804,0.68,136.95,136.9,12.25369682]
[1764164836130,4.91084185,136.94,136.91,11.92369682]
[1764164836317,0.68,136.95,136.91,11.92369682]
[1764164836636,4.91000814,136.94,136.92,7.30353491]
[1764164836837,0.68,136.95,136.92,7.30353491]
[1764164837127,4.91004588,136.94,136.92,7.30353491]
[1764164837434,0.68,136.95,136.92,7.30353491]
[1764164837618,4.90962299,136.94,136.92,7.30353491]
[1764164837814,0.68,136.95,136.9,7.30460189]
[1764164838022,5.58962462,136.94,136.9,11.79188686]
[1764164838208,0.68,136.94,136.9,11.79188686]
[1764164838408,0.68,136.93,136.9,30.0533916]
[1764164839117,0.68,136.95,136.91,4.48728497]
[1764164839312,4.90890543,136.94,136.91,4.48728497]
[1764164839726,5.58890543,136.94,136.91,4.48728497]
[1764164839943,0.68,136.94,136.91,4.48728497]
[1764164840235,0.68,136.93,136.91,4.48728497]
[1764164840615,0.68,136.93,136.92,7.30353491]
[1764164841823,4.90890543,136.94,136.92,7.30353491]
[1764164842021,8.90994492,136.97,136.93,4.48728497]
[1764164842235,4.90820425,136.96,136.93,66.38728497]
[1764164842432,5.58820425,136.96,136.93,66.38728497]
[1764164843534,5.58820425,136.96,136.94,7.30246823]
[1764164844346,5.58820425,136.96,136.93,66.38728497]
[1764164844347,10.07167891,136.95,136.93,61.9]
[1764164844553,9.39167891,136.94,136.93,61.9]
[1764164844715,9.39167891,136.94,136.91,69.20379385]
[1764164844716,5.58439394,136.94,136.91,69.20379385]
[1764164844916,5.58439394,136.95,136.91,73.69107882]
[1764164845139,5.58439394,136.94,136.91,87.46396476]
[1764164845437,0.68,136.94,136.91,87.46396476]
[1764164845613,5.58439394,136.94,136.91,87.46396476]
[1764164845814,0.68,136.94,136.91,87.46396476]
[1764164846024,5.58439394,136.94,136.91,87.46396476]
[1764164846240,0.68,136.94,136.91,87.46396476]
[1764164846538,5.58439394,136.94,136.91,87.46396476]
[1764164846741,0.68,136.94,136.91,87.46396476]
[1764164846946,5.58439394,136.94,136.91,87.46396476]
[1764164847147,0.68,136.94,136.91,87.46396476]
[1764164848046,0.68,136.94,136.91,69.20379385]
[1764164848646,10.07167891,136.94,136.91,61.9]
[1764164848948,0.68,136.94,136.91,69.20402149]
[1764164849146,0.68,136.93,136.91,69.20402149]
[1764164853231,0.68,136.94,136.91,69.20402149]
[1764164857152,0.18,136.94,136.91,69.20402149]
[1764164858241,4.48728497,136.92,136.9,61.9]
[1764164858433,4.48728497,136.92,136.88,80.16370282]
[1764164858628,9.39179781,136.92,136.88,18.26370282]
[1764164858946,4.48728497,136.92,136.87,7.30620296]
[1764164859255,13.97722989,136.91,136.87,7.30620296]
[1764164859620,0.68,136.9,136.87,7.30620296]
[1764164860027,0.68,136.9,136.87,25.57171037]
[1764164860353,0.68,136.9,136.87,26.23171037]
[1764164861167,0.68,136.9,136.87,7.30620296]
[1764164861665,5.16728497,136.9,136.85,7.30704399]
[1764164861872,9.39770603,136.89,136.85,7.30704399]
[1764164862066,9.39770603,136.89,136.84,61.9]
[1764164862067,10.07770603,136.89,136.84,7.30780473]
[1764164862268,0.68,136.88,136.84,7.30780473]
[1764164862973,10.08001933,136.88,136.84,7.30780473]
[1764164863146,4.91541291,136.87,136.83,7.30816653]
[1764164863345,4.91541291,136.87,136.83,7.96816653]
[1764164863346,0.68,136.87,136.83,7.96816653]
[1764164863647,0.68,136.87,136.83,30.72629853]
[1764164863854,0.68,136.87,136.83,25.57901356]
[1764164864074,0.68,136.87,136.83,26.27901356]
[1764164866056,5.16728497,136.87,136.83,7.30816653]
[1764164866262,5.16728497,136.87,136.82,69.20866554]
[1764164866263,4.48728497,136.85,136.82,69.20866554]
[1764164866441,4.48728497,136.85,136.82,7.30866554]
[1764164866645,0.7,136.84,136.82,7.30866554]
[1764164867063,0.7,136.84,136.8,7.30994152]
[1764164867257,5.18728497,136.84,136.8,7.30994152]
[1764164867564,0.7,136.84,136.8,7.30994152]
[1764164867754,9.50994492,136.86,136.81,5.18728497]
[1764164867947,0.7,136.85,136.82,7.30887297]
[1764164869569,16.308864,136.87,136.83,0.7]
[1764164869765,17.008864,136.87,136.83,0.7]
[1764164870067,0.7,136.92,136.86,11.79402178]
[1764164870262,5.60901135,136.91,136.87,4.48728497]
[1764164870561,0.7,136.91,136.87,4.48728497]
[1764164870768,0.7,136.9,136.87,4.48728497]
[1764164870949,0.7,136.9,136.86,7.30673681]
[1764164871151,21.49614897,136.9,136.85,7.30703014]
[1764164871670,0.7,136.89,136.85,12.49431511]
[1764164873259,0.7,136.89,136.85,30.76249194]
[1764164873657,0.7,136.89,136.86,4.48728497]
[1764164873974,5.60985079,136.89,136.85,11.79431511]
[1764164874761,5.60985079,136.89,136.85,12.49431511]
[1764164874967,0.7,136.89,136.85,12.49431511]
[1764164875168,5.60985079,136.89,136.85,12.49431511]
[1764164875366,0.7,136.89,136.85,30.76249194]
[1764164875665,5.60985079,136.9,136.87,4.48728497]
[1764164875968,0.7,136.9,136.87,4.48728497]
[1764164876156,0.7,136.89,136.86,12.49399455]
[1764164876357,0.7,136.89,136.86,7.30670958]
[1764164876572,0.7,136.89,136.85,7.30708903]
[1764164876777,5.60963177,136.89,136.85,72.08161396]
[1764164876963,0.7,136.89,136.85,72.08161396]
[1764164877163,0.7,136.88,136.85,72.08161396]
[1764164879063,0.7,136.88,136.85,69.20708903]
[1764164879889,0.7,136.88,136.85,61.9]
[1764164880065,0.7,136.88,136.85,69.20722673]
[1764164880268,0.7,136.88,136.85,61.9]
[1764164880978,0.7,136.88,136.85,69.2071983]
[1764164881180,0.7,136.88,136.85,61.9]
[1764164881488,0.7,136.88,136.85,69.20725332]
[1764164883095,8.48317711,136.88,136.83,61.9]
[1764164883262,8.48317711,136.88,136.83,69.20796952]
[1764164883263,3.57452493,136.88,136.83,69.20796952]
[1764164883463,16.308864,136.86,136.82,69.20862979]
[1764164883770,25.11880892,136.85,136.79,25.58592912]
[1764164883980,25.11880892,136.85,136.77,62.1]
[1764164883981,2.87452493,136.82,136.77,0.2]
[1764164884171,0.7,136.81,136.77,7.51139879]
[1764164884372,0.7,136.81,136.77,11.08592372]
[1764164884602,0.7,136.81,136.77,29.36478604]
[1764164884969,8.80994492,136.83,136.78,3.57452493]
[1764164885289,0.7,136.83,136.79,3.57452493]
[1764164885496,8.80994492,136.84,136.79,3.57452493]
[1764164885670,5.56618183,136.83,136.79,3.57452493]
[1764164885872,0.66,136.83,136.79,8.01001492]
[1764164886077,0.66,136.82,136.78,7.31084896]
[1764164886263,6.12913309,136.87,136.81,2.87452493]
[1764164886466,4.90325811,136.88,136.83,0.42648471]
[1764164886673,0.66,136.88,136.82,17.03975129]
[1764164886968,0.66,136.91,136.86,2.87452493]
[1764164887299,4.90313239,136.9,136.89,2.87452493]
[1764164887668,4.90313239,136.92,136.89,2.87452493]
[1764164887875,0.66,136.95,136.91,2.87452493]
[1764164888093,4.90259199,136.94,136.91,7.30385673]
[1764164888270,4.90259199,136.93,136.91,7.30385673]
[1764164888468,0.66,136.95,136.91,7.30385673]
[1764164888668,4.90340809,136.94,136.91,7.30385673]
[1764164888973,4.90340809,136.93,136.89,6.8390065]
[1764164889286,4.90340809,136.92,136.89,14.14409146]
[1764164889499,0.66,136.94,136.89,14.14409146]
[1764164889707,4.90473463,136.93,136.89,14.14409146]
[1764164889866,4.90473463,136.92,136.89,7.30508496]
[1764164890067,4.90473463,136.91,136.89,7.30508496]
[1764164890267,9.46994492,136.93,136.89,7.30508496]
[1764164890479,4.90562975,136.92,136.89,7.30508496]
[1764164890705,0.66,136.92,136.89,7.30508496]
[1764164890878,0.66,136.94,136.91,6.8390065]
[1764164891074,5.56511239,136.93,136.91,6.8390065]
[1764164891295,4.90511239,136.92,136.89,25.56792373]
[1764164891466,0.66,136.95,136.91,6.8390065]
[1764164891769,4.90529381,136.94,136.91,6.8390065]
[1764164891973,4.90529381,136.93,136.92,7.30353491]
[1764164893092,4.90529381,136.93,136.92,14.14254141]
[1764164893590,5.56529381,136.93,136.92,7.30353491]
[1764164894370,4.90529381,136.93,136.92,7.30353491]
[1764164894571,5.57529381,136.93,136.89,7.30460561]
[1764164894773,5.57536806,136.92,136.89,14.14361211]
[1764164895074,0.67,136.92,136.89,14.14361211]
[1764164895398,0.67,136.92,136.89,32.40645088]
[1764164895591,0.67,136.95,136.91,6.8390065]
[1764164895787,4.90551633,136.94,136.91,6.8390065]
[1764164896091,4.90551633,136.93,136.91,14.14268204]
[1764164896291,4.90551633,136.92,136.91,14.14268204]
[1764164896590,4.90551633,136.92,136.91,7.30367554]
[1764164897198,4.90551633,136.92,136.9,7.30444977]
[1764164897393,0.67,136.93,136.9,7.30444977]
[1764164897593,4.90594391,136.92,136.9,7.30444977]
[1764164897791,0.67,136.93,136.9,61.9]
[1764164898098,5.5759435,136.92,136.9,69.20456088]
[1764164898272,0.67,136.92,136.9,69.20456088]
[1764164899402,0.67,136.92,136.9,61.9]
[1764164899403,4.90671516,136.91,136.9,61.9]
[1764164899595,5.57671516,136.91,136.9,61.9]
[1764164900696,5.57671516,136.91,136.9,69.20460189]
[1764164902416,5.57671516,136.91,136.9,61.9]
[1764164903506,5.57671516,136.91,136.89,69.20496184]
[1764164903708,0.67,136.91,136.89,69.20496184]
[1764164905085,4.90831486,136.9,136.89,61.9]
[1764164905290,4.90831486,136.9,136.88,7.30549206]
[1764164905502,5.57831486,136.89,136.87,61.9]
[1764164905709,4.90939318,136.88,136.87,61.9]
[1764164906003,5.57939318,136.88,136.87,61.9]
[1764164906304,14.3893381,136.88,136.84,7.30760187]
[1764164906477,0.67,136.87,136.84,7.30760187]
[1764164907284,0.67,136.9,136.85,6.8390065]
[1764164907486,4.90929858,136.89,136.87,6.8390065]
[1764164907695,4.90859056,136.91,136.88,6.8390065]
[1764164907909,0.67,136.92,136.89,6.8390065]
[1764164908110,4.90835444,136.91,136.89,6.8390065]
[1764164908314,0.67,136.92,136.89,6.8390065]
[1764164908490,4.90846768,136.91,136.89,6.8390065]
[1764164908688,0.67,136.92,136.88,6.8390065]
[1764164908898,4.90846809,136.91,136.88,6.8390065]
[1764164909100,0.67,136.92,136.89,7.30513551]
[1764164909413,4.90857392,136.91,136.89,7.30513551]
[1764164909708,0.67,136.92,136.88,14.14461883]
[1764164909902,4.90857473,136.91,136.88,14.14461883]
[1764164910092,0.67,136.92,136.88,7.30561233]
[1764164910296,4.90872644,136.91,136.88,14.14461883]
[1764164910484,0.67,136.92,136.88,14.14461883]
[1764164910777,4.90872644,136.91,136.88,14.14461883]
[1764164910977,0.67,136.92,136.88,14.14461883]
[1764164911181,4.90872644,136.91,136.88,14.14461883]
[1764164911383,0.67,136.92,136.88,14.14461883]
[1764164911582,4.90898462,136.91,136.88,14.14461883]
[1764164911803,0.67,136.92,136.88,14.14461883]
[1764164911998,4.90898381,136.91,136.88,7.30561233]
[1764164912195,4.90898381,136.9,136.88,7.30561233]
[1764164912383,0.67,136.91,136.88,7.30561233]
[1764164912584,4.91043322,136.9,136.88,7.30561233]
[1764164912791,0.67,136.91,136.88,7.30561233]
[1764164913011,4.91043322,136.9,136.88,7.30561233]
[1764164913304,0.67,136.91,136.87,25.57055644]
[1764164913481,5.58119719,136.9,136.87,25.57055644]
[1764164913677,0.67,136.9,136.87,25.57055644]
[1764164915092,4.91239437,136.89,136.86,7.30673681]
[1764164915293,0.67,136.9,136.86,69.20673681]
[1764164915590,4.91234333,136.89,136.86,69.20673681]
[1764164915792,7.5090065,136.9,136.86,7.30673681]
[1764164915992,5.58239133,136.89,136.86,7.30673681]
[1764164916199,4.91239133,136.88,136.86,7.30673681]
[1764164916398,0.67,136.88,136.86,7.30673681]
[1764164917288,0.67,136.88,136.83,32.41728843]
[1764164917502,0.67,136.88,136.83,94.31728843]
[1764164918316,0.67,136.9,136.86,6.8390065]
[1764164918510,4.91254425,136.89,136.83,87.47828193]
[1764164918818,4.91254425,136.88,136.86,2.87392507]
[1764164919107,0.67,136.9,136.86,2.87392507]
[1764164919314,4.9126432,136.89,136.87,7.30620296]
[1764164919517,0.67,136.9,136.87,7.30620296]
[1764164919700,4.9124085,136.89,136.87,7.30620296]
[1764164919900,0.67,136.9,136.87,7.30620296]
[1764164920213,4.91240891,136.89,136.87,7.30620296]
[1764164920396,0.67,136.9,136.87,7.30620296]
[1764164920596,4.91254108,136.89,136.87,7.30620296]
[1764164920794,0.67,136.9,136.87,7.30620296]
[1764164921004,4.91254149,136.89,136.87,7.30620296]
[1764164921205,0.67,136.9,136.87,7.30620296]
[1764164921407,4.91255104,136.89,136.87,7.30620296]
[1764164921591,0.67,136.9,136.87,7.30620296]
[1764164921786,4.91255063,136.89,136.87,7.30620296]
[1764164922014,0.67,136.9,136.87,7.30620296]
[1764164922210,4.91255063,136.89,136.87,7.30620296]
[1764164922513,0.67,136.9,136.87,7.30620296]
[1764164922811,4.91273078,136.89,136.85,7.30727073]
[1764164923015,4.91273078,136.88,136.85,7.30727073]
[1764164923218,0.67,136.88,136.85,7.30727073]
[1764164923895,0.67,136.88,136.84,25.57662328]
[1764164924420,4.91359623,136.87,136.84,87.47662328]
[1764164924609,0.67,136.88,136.84,87.47662328]
[1764164924814,4.91347884,136.87,136.84,87.47662328]
[1764164925011,0.67,136.88,136.84,87.47662328]
[1764164925213,4.91347884,136.87,136.84,87.47662328]
[1764164925415,0.67,136.88,136.84,87.47662328]
[1764164925721,4.91360567,136.87,136.84,87.47662328]
[1764164925906,0.67,136.87,136.84,87.47662328]
[1764164928120,9.47994492,136.89,136.85,6.84375711]
[1764164928319,4.91395437,136.88,136.85,6.84375711]
[1764164928509,0.67,136.88,136.85,6.84375711]
[1764164929107,0.67,136.88,136.86,7.30673681]
[1764164929905,0.67,136.89,136.86,7.30673681]
[1764164930102,4.91684525,136.88,136.86,7.30673681]
[1764164930304,4.91684525,136.87,136.86,69.20673681]
[1764164931022,0.67,136.89,136.86,69.20673681]
[1764164931199,4.91954669,136.88,136.86,87.47357883]
[1764164931396,0.67,136.89,136.86,94.31733594]
[1764164931600,4.9227242,136.88,136.86,94.31733594]
[1764164931825,0.67,136.89,136.86,94.31733594]
[1764164932022,4.9227242,136.88,136.86,94.31733594]
[1764164932328,0.67,136.89,136.87,6.84375711]
[1764164932531,6.12913309,136.93,136.88,6.84375711]
[1764164932821,4.92206202,136.92,136.91,6.84375711]
[1764164933027,4.92206202,136.92,136.88,16.308864]
[1764164933227,0.67,136.95,136.92,7.30353491]
[1764164933425,4.92084236,136.94,136.92,7.30353491]
[1764164933616,4.92084236,136.93,136.92,7.30353491]
[1764164934316,5.59084236,136.93,136.88,23.6145289]
[1764164934502,4.92084236,136.92,136.89,6.84375711]
[1764164934702,6.12913309,136.95,136.9,6.84375711]
[1764164934903,4.92036564,136.94,136.92,6.84375711]
[1764164935104,4.92036564,136.93,136.92,6.84375711]
[1764164935333,4.92036564,136.93,136.92,14.14729202]
[1764164936328,4.92036564,136.93,136.92,7.30353491]
[1764164936525,4.92036564,136.93,136.92,19.20743672]
[1764164936717,4.92036564,136.93,136.92,7.30353491]
[1764164939128,4.92036564,136.93,136.92,69.20353491]
[1764164939515,4.92036564,136.93,136.92,61.9]
[1764164939516,5.59036564,136.93,136.92,61.9]
[1764164940832,4.92036564,136.93,136.92,69.20353491]
[1764164941033,4.92036564,136.93,136.92,81.10743672]
[1764164941804,6.89913309,136.97,136.92,99.36627399]
[1764164942023,5.5870687,136.96,136.92,99.36627399]
[1764164942221,4.9170687,136.95,136.92,69.20353491]
[1764164942442,4.9170687,136.94,136.92,81.10743672]
[1764164942639,4.9170687,136.93,136.92,91.94932509]
[1764164943311,0.67,136.95,136.92,87.46237218]
[1764164943629,4.91562713,136.94,136.92,87.46237218]
[1764164943930,4.91562713,136.93,136.92,87.46237218]
[1764164946132,0.67,136.94,136.92,87.46237218]
[1764164947638,4.91331036,136.93,136.92,87.46237218]